[Event "2nd Namma Bengaluru Open-A 2025"]
[Site "Bengaluru"]
[Date "2025.04.12"]
[Round "4.15"]
[White "Nguyen, Quoc Hy"]
[Black "Sherla Prathamesh"]
[Result "1/2-1/2"]
[Annotator "ChessBase"]
[ECO "A13"]
[WhiteElo "2404"]
[BlackElo "2157"]
[PlyCount "104"]
[EventDate "2025.04.10"]
[EventType "swiss"]
[EventCountry "IND"]
[SourceTitle "playchess.com"]
[Source "ChessBase"]
[SourceQuality "1"]
[TimeControl "5400+30"]

1. c4 {[%emt 0:00:07]} e6 {[%emt 0:00:16]} 2. Nc3 {[%emt 0:00:14]} f5 {[%emt 0:00:14]} 3. e4 {[%emt 0:01:12]} fxe4 {[%emt 0:00:06]} 4. Qh5+ {[%emt 0:04:40]} g6 {[%emt 0:00:15]} 5. Qe5 {[%emt 0:00:07]} Nf6 {[%emt 0:01:02]} 6. Nd5 {[%emt 0:02:55]} Kf7 {[%emt 0:15:22]} 7. Qxc7 {[%emt 0:00:40]} Be7 {[%emt 0:01:16]} 8. Qxd8 {[%emt 0:00:08]} Bxd8 {[%emt 0:00:01]} 9. Nxf6 {[%emt 0:00:10]} Bxf6 {[%emt 0:01:12]} 10. d3 {[%emt 0:00:24]} exd3 {[%emt 0:01:42]} 11. Bxd3 {[%emt 0:00:10]} Nc6 {[%emt 0:01:36]} 12. Nf3 {[%emt 0:00:26]} d5 {[%emt 0:03:15]} 13. O-O {[%emt 0:00:28]} h6 {[%emt 0:10:14]} 14. h4 {[%emt 0:03:03]} Nb4 {[%emt 0:06:27]} 15. Be2 {[%emt 0:00:14]} d4 {[%emt 0:02:27]} 16. a3 {[%emt 0:08:38]} Nc6 {[%emt 0:04:54]} 17. h5 {[%emt 0:01:03]} e5 {[%emt 0:04:34]} 18. Nd2 {[%emt 0:04:43]} gxh5 {[%emt 0:05:23]} 19. Bxh5+ {[%emt 0:01:31]} Kg7 {[%emt 0:01:19]} 20. b4 {[%emt 0:06:08]} Bf5 {[%emt 0:03:15]} 21. Bf3 {[%emt 0:00:58]} d3 {[%emt 0:03:34]} 22. Bb2 {[%emt 0:00:20]} Rad8 {[%emt 0:02:34]} 23. Rad1 {[%emt 0:01:33]} Rhe8 {[%emt 0:04:12]} 24. Rfe1 {[%emt 0:07:57]} Nd4 {[%emt 0:05:17]} 25. Be4 {[%emt 0:05:01]} Bg4 {[%emt 0:02:43]} 26. f3 {[%emt 0:07:00]} Ne2+ {[%emt 0:00:06]} 27. Kh2 {[%emt 0:00:20]} Be6 {[%emt 0:03:43]} 28. Bxb7 {[%emt 0:02:02]} Kf7 {[%emt 0:03:15]} 29. Rf1 {[%emt 0:04:42]} Bh4 {[%emt 0:03:10]} 30. g4 {[%emt 0:08:14]} Bg3+ {[%emt 0:01:12]} 31. Kg2 {[%emt 0:00:09]} Bf4 {[%emt 0:00:45]} 32. Rh1 {[%emt 0:02:40]} h5 {[%emt 0:02:10]} 33. Rxh5 {[%emt 0:12:23]} Bxd2 {[%emt 0:00:06]} 34. Rxd2 {[%emt 0:00:11]} Nf4+ {[%emt 0:00:04]} 35. Kf2 {[%emt 0:00:03]} Nxh5 {[%emt 0:00:10]} 36. gxh5 {[%emt 0:00:03]} Bxc4 {[%emt 0:01:50]} 37. Be4 {[%emt 0:00:04]} Ke6 {[%emt 0:02:18]} 38. Ke3 {[%emt 0:00:25]} Rh8 {[%emt 0:01:20]} 39. Bg6 {[%emt 0:00:06]} Rhf8 {[%emt 0:00:24]} 40. Be4 {[%emt 0:03:21]} Rh8 {[%emt 0:04:26]} 41. Bg6 {[%emt 0:00:13]} Rhf8 {[%emt 0:00:05]} 42. Be4 {[%emt 0:00:06]} Rf6 {[%emt 0:00:04]} 43. Bc3 {[%emt 0:02:33]} Rh8 {[%emt 0:02:25]} 44. Rh2 {[%emt 0:00:44]} Rfh6 {[%emt 0:00:47]} 45. Rg2 {[%emt 0:00:15]} Rxh5 {[%emt 0:00:29]} 46. Rg6+ {[%emt 0:00:02]} Ke7 {[%emt 0:00:55]} 47. Rc6 {[%emt 0:01:38]} Bb5 {[%emt 0:00:30]} 48. Rc5 {[%emt 0:01:31]} a6 {[%emt 0:00:15]} 49. Bxe5 {[%emt 0:00:07]} Rd8 {[%emt 0:00:31]} 50. Bc7 {[%emt 0:00:24]} Rdh8 {[%emt 0:00:16]} 51. Be5 {[%emt 0:00:10]} Rd8 {[%emt 0:00:26]} 52. Bc7 {[%emt 0:00:07]} Rdh8 {[%emt 0:00:51]} 1/2-1/2

[Event "2nd Namma Bengaluru Open-A 2025"]
[Site "Bengaluru"]
[Date "2025.04.12"]
[Round "4.16"]
[White "Fedorov, Alexei"]
[Black "Soham Roy"]
[Result "1/2-1/2"]
[Annotator "ChessBase"]
[ECO "C50"]
[WhiteElo "2396"]
[BlackElo "2085"]
[PlyCount "88"]
[EventDate "2025.04.10"]
[EventType "swiss"]
[EventCountry "IND"]
[SourceTitle "playchess.com"]
[Source "ChessBase"]
[SourceQuality "1"]
[TimeControl "5400+30"]

1. e4 {[%emt 0:00:04]} e5 {[%emt 0:00:05]} 2. Nf3 {[%emt 0:00:08]} Nc6 {[%emt 0:00:05]} 3. Bc4 {[%emt 0:00:08]} d6 {[%emt 0:00:07]} 4. d4 {[%emt 0:03:37]} Nf6 {[%emt 0:00:11]} 5. d5 {[%emt 0:07:26]} Nb8 {[%emt 0:07:35]} 6. Bd3 {[%emt 0:00:52]} Be7 {[%emt 0:01:19]} 7. c4 {[%emt 0:00:13]} a5 {[%emt 0:02:56]} 8. Nc3 {[%emt 0:00:07]} Na6 {[%emt 0:00:14]} 9. h3 {[%emt 0:00:21]} O-O {[%emt 0:02:42]} 10. Be3 {[%emt 0:03:27]} Nd7 {[%emt 0:01:26]} 11. g4 {[%emt 0:01:10]} Ndc5 {[%emt 0:01:12]} 12. Bc2 {[%emt 0:00:08]} c6 {[%emt 0:02:51]} 13. Qd2 {[%emt 0:05:12]} b5 {[%emt 0:12:40]} 14. cxb5 {[%emt 0:34:12]} cxb5 {[%emt 0:00:29]} 15. Ne2 {[%emt 0:00:37]} Bd7 {[%emt 0:18:05]} 16. Ng3 {[%emt 0:00:19]} Re8 {[%emt 0:00:23]} 17. O-O {[%emt 0:00:37]} b4 {[%emt 0:04:57]} 18. Kh2 {[%emt 0:06:35]} Rc8 {[%emt 0:06:32]} 19. Rac1 {[%emt 0:06:33]} Bf8 {[%emt 0:04:57]} 20. Bb1 {[%emt 0:06:04]} Be7 {[%emt 0:04:04]} 21. Rg1 {[%emt 0:00:27]} Bf8 {[%emt 0:01:12]} 22. Nf5 {[%emt 0:00:38]} Rc7 {[%emt 0:03:40]} 23. g5 {[%emt 0:06:20]} Bc8 {[%emt 0:04:23]} 24. Rg3 {[%emt 0:01:21]} Kh8 {[%emt 0:02:26]} 25. h4 {[%emt 0:01:30]} g6 {[%emt 0:04:56]} 26. Nh6 {[%emt 0:00:31]} Bxh6 {[%emt 0:01:42]} 27. gxh6 {[%emt 0:00:04]} Rf8 {[%emt 0:03:04]} 28. h5 {[%emt 0:02:55]} f5 {[%emt 0:02:07]} 29. hxg6 {[%emt 0:03:42]} hxg6 {[%emt 0:00:09]} 30. Rxg6 {[%emt 0:02:26]} fxe4 {[%emt 0:03:01]} 31. Bg5 {[%emt 0:04:25]} Qe8 {[%emt 0:03:40]} 32. Nh4 {[%emt 0:02:28]} Rcf7 {[%emt 0:01:25]} 33. Kg1 {[%emt 0:01:26]} Qd7 {[%emt 0:01:28]} 34. Qd1 {[%emt 0:00:49]} Qh3 {[%emt 0:00:45]} 35. Rg7 {[%emt 0:00:28]} Rxg7 {[%emt 0:00:18]} 36. hxg7+ {[%emt 0:00:04]} Kxg7 {[%emt 0:00:02]} 37. Qh5 {[%emt 0:00:12]} Qg4+ {[%emt 0:00:15]} 38. Qxg4 {[%emt 0:00:03]} Bxg4 {[%emt 0:00:05]} 39. Be7 {[%emt 0:00:12]} Rh8 {[%emt 0:00:31]} 40. Kg2 {[%emt 0:00:15]} Rh6 {[%emt 0:01:00]} 41. Kg3 {[%emt 0:00:44]} Bd7 {[%emt 0:00:29]} 42. Bg5 {[%emt 0:00:27]} Rh8 {[%emt 0:00:31]} 43. Be7 {[%emt 0:00:15]} Rh6 {[%emt 0:00:55]} 44. Bg5 {[%emt 0:00:17]} Rh8 {[%emt 0:01:36]} 1/2-1/2

[Event "2nd Namma Bengaluru Open-A 2025"]
[Site "Bengaluru"]
[Date "2025.04.12"]
[Round "4.17"]
[White "Harsh Suresh"]
[Black "Ziatdinov, Raset"]
[Result "1-0"]
[Annotator "ChessBase"]
[ECO "C22"]
[WhiteElo "2389"]
[BlackElo "2041"]
[PlyCount "75"]
[EventDate "2025.04.10"]
[EventType "swiss"]
[EventCountry "IND"]
[SourceTitle "playchess.com"]
[Source "ChessBase"]
[SourceQuality "1"]
[TimeControl "5400+30"]

1. e4 {[%emt 0:01:19]} e5 {[%emt 0:00:06]} 2. d4 {[%emt 0:00:13]} exd4 {[%emt 0:00:06]} 3. Qxd4 {[%emt 0:00:08]} Nc6 {[%emt 0:00:14]} 4. Qc4 {[%emt 0:00:09]} Bb4+ {[%emt 0:01:21]} 5. Nc3 {[%emt 0:00:09]} d6 {[%emt 0:00:48]} 6. a3 {[%emt 0:00:07]} Be6 {[%emt 0:01:04]} 7. Qd3 {[%emt 0:00:10]} Bxc3+ {[%emt 0:04:42]} 8. Qxc3 {[%emt 0:03:03]} Nf6 {[%emt 0:00:54]} 9. Be3 {[%emt 0:23:10]} O-O {[%emt 0:00:23]} 10. f3 {[%emt 0:00:24]} d5 {[%emt 0:13:04]} 11. O-O-O {[%emt 0:02:41]} Qc8 {[%emt 0:01:00]} 12. Bg5 {[%emt 0:05:43]} d4 {[%emt 0:00:31]} 13. Qd2 {[%emt 0:09:30]} Nd7 {[%emt 0:12:33]} 14. Ne2 {[%emt 0:02:06]} f6 {[%emt 0:00:32]} 15. Bh4 {[%emt 0:00:26]} Nde5 {[%emt 0:00:33]} 16. Nxd4 {[%emt 0:01:22]} Nxd4 {[%emt 0:01:27]} 17. Qxd4 {[%emt 0:00:12]} c5 {[%emt 0:00:05]} 18. Qc3 {[%emt 0:03:59]} c4 {[%emt 0:15:41]} 19. Bg3 {[%emt 0:09:20]} Nd7 {[%emt 0:01:54]} 20. Rd6 {[%emt 0:02:48]} Bf7 {[%emt 0:04:02]} 21. Be2 {[%emt 0:01:43]} b5 {[%emt 0:00:20]} 22. Qa5 {[%emt 0:07:11]} a6 {[%emt 0:03:21]} 23. Rhd1 {[%emt 0:01:16]} Nc5 {[%emt 0:02:58]} 24. Qb6 {[%emt 0:01:54]} Na4 {[%emt 0:00:58]} 25. Qc6 {[%emt 0:00:51]} Qxc6 {[%emt 0:05:51]} 26. Rxc6 {[%emt 0:00:02]} Rfc8 {[%emt 0:00:13]} 27. Rxc8+ {[%emt 0:02:17]} Rxc8 {[%emt 0:00:03]} 28. Rd6 {[%emt 0:01:07]} Ra8 {[%emt 0:02:17]} 29. Bf2 {[%emt 0:00:45]} Kf8 {[%emt 0:01:50]} 30. Rd7 {[%emt 0:00:57]} Ke8 {[%emt 0:00:40]} 31. Rc7 {[%emt 0:01:26]} Rd8 {[%emt 0:00:13]} 32. Be1 {[%emt 0:01:00]} Rd7 {[%emt 0:01:31]} 33. Rc8+ {[%emt 0:00:22]} Rd8 {[%emt 0:00:22]} 34. Rc6 {[%emt 0:00:09]} Ra8 {[%emt 0:00:05]} 35. Rc7 {[%emt 0:00:48]} Rd8 {[%emt 0:01:34]} 36. Bb4 {[%emt 0:01:20]} Rd7 {[%emt 0:00:06]} 37. Rc8+ {[%emt 0:00:16]} Rd8 {[%emt 0:00:10]} 38. Rc6 {[%emt 0:00:15]} 1-0

[Event "2nd Namma Bengaluru Open-A 2025"]
[Site "Bengaluru"]
[Date "2025.04.12"]
[Round "4.18"]
[White "Roy Chowdhury, Saptarshi"]
[Black "Schekachikhin, Maksim"]
[Result "0-1"]
[Annotator "ChessBase"]
[ECO "B31"]
[WhiteElo "2224"]
[BlackElo "2370"]
[PlyCount "52"]
[EventDate "2025.04.10"]
[EventType "swiss"]
[EventCountry "IND"]
[SourceTitle "playchess.com"]
[Source "ChessBase"]
[SourceQuality "1"]
[TimeControl "5400+30"]

1. e4 {[%emt 0:00:40]} c5 {[%emt 0:00:20]} 2. Nf3 {[%emt 0:00:09]} Nc6 {[%emt 0:00:18]} 3. Nc3 {[%emt 0:01:06]} g6 {[%emt 0:02:15]} 4. Bb5 {[%emt 0:02:58]} Bg7 {[%emt 0:02:20]} 5. O-O {[%emt 0:00:30]} e5 {[%emt 0:06:22]} 6. Bxc6 {[%emt 0:02:02]} bxc6 {[%emt 0:04:50]} 7. d3 {[%emt 0:02:54]} d6 {[%emt 0:00:10]} 8. Ne1 {[%emt 0:03:31]} Ne7 {[%emt 0:12:52]} 9. f4 {[%emt 0:03:13]} exf4 {[%emt 0:06:56]} 10. Bxf4 {[%emt 0:00:10]} f5 {[%emt 0:05:09]} 11. Nf3 {[%emt 0:09:46]} h6 {[%emt 0:07:28]} 12. exf5 {[%emt 0:05:12]} O-O {[%emt 0:01:01]} 13. f6 {[%emt 0:23:26]} Rxf6 {[%emt 0:00:30]} 14. Bd2 {[%emt 0:01:19]} d5 {[%emt 0:10:55]} 15. Qe1 {[%emt 0:02:40]} Nf5 {[%emt 0:08:24]} 16. Na4 {[%emt 0:05:52]} Qf8 {[%emt 0:06:32]} 17. Rb1 {[%emt 0:04:27]} g5 {[%emt 0:05:21]} 18. h3 {[%emt 0:03:36]} Bd7 {[%emt 0:04:07]} 19. b4 {[%emt 0:08:52]} Re8 {[%emt 0:00:41]} 20. Qd1 {[%emt 0:00:19]} Ng3 {[%emt 0:06:05]} 21. Nxc5 {[%emt 0:02:00]} Bc8 {[%emt 0:00:08]} 22. Rf2 {[%emt 0:08:36]} g4 {[%emt 0:00:19]} 23. hxg4 {[%emt 0:03:40]} Bxg4 {[%emt 0:00:08]} 24. Bc3 {[%emt 0:01:01]} Bxf3 {[%emt 0:00:54]} 25. gxf3 {[%emt 0:04:28]} Rg6 {[%emt 0:00:37]} 26. Bxg7 {[%emt 0:00:16]} Qxg7 {[%emt 0:00:20]} 0-1

[Event "2nd Namma Bengaluru Open-A 2025"]
[Site "Bengaluru"]
[Date "2025.04.12"]
[Round "4.19"]
[White "Dinesh Rajan M"]
[Black "Manish Anto Cristiano F"]
[Result "0-1"]
[Annotator "ChessBase"]
[ECO "C50"]
[WhiteElo "2176"]
[BlackElo "2361"]
[PlyCount "106"]
[EventDate "2025.04.10"]
[EventType "swiss"]
[EventCountry "IND"]
[SourceTitle "playchess.com"]
[Source "ChessBase"]
[SourceQuality "1"]
[TimeControl "5400+30"]

1. e4 {[%emt 0:00:41]} e5 {[%emt 0:00:15]} 2. Nf3 {[%emt 0:00:07]} Nc6 {[%emt 0:00:07]} 3. Bc4 {[%emt 0:00:06]} Bc5 {[%emt 0:00:17]} 4. d4 {[%emt 0:00:23]} Bxd4 {[%emt 0:01:23]} 5. Nxd4 {[%emt 0:01:08]} Nxd4 {[%emt 0:00:10]} 6. Be3 {[%emt 0:00:35]} Ne6 {[%emt 0:08:17]} 7. Bxe6 {[%emt 0:00:34]} dxe6 {[%emt 0:01:40]} 8. Qh5 {[%emt 0:00:17]} Qd6 {[%emt 0:12:55]} 9. Nc3 {[%emt 0:04:20]} Nf6 {[%emt 0:01:55]} 10. Qg5 {[%emt 0:07:12]} O-O {[%emt 0:02:06]} 11. O-O {[%emt 0:05:14]} Nd7 {[%emt 0:09:12]} 12. Rfd1 {[%emt 0:19:11]} Qb4 {[%emt 0:01:02]} 13. Rd3 {[%emt 0:00:47]} f6 {[%emt 0:07:55]} 14. Qg3 {[%emt 0:00:23]} b6 {[%emt 0:05:48]} 15. Rad1 {[%emt 0:01:08]} Qe7 {[%emt 0:01:59]} 16. Nb5 {[%emt 0:10:11]} c6 {[%emt 0:04:10]} 17. Nd6 {[%emt 0:05:29]} Ba6 {[%emt 0:00:11]} 18. c4 {[%emt 0:05:12]} c5 {[%emt 0:03:13]} 19. Bh6 {[%emt 0:07:10]} Rfd8 {[%emt 0:06:20]} 20. Bxg7 {[%emt 0:01:57]} Qxg7 {[%emt 0:00:43]} 21. Qxg7+ {[%emt 0:00:04]} Kxg7 {[%emt 0:00:10]} 22. Nb5 {[%emt 0:00:04]} Bxb5 {[%emt 0:02:16]} 23. cxb5 {[%emt 0:00:09]} a6 {[%emt 0:00:39]} 24. Rxd7+ {[%emt 0:00:08]} Rxd7 {[%emt 0:00:04]} 25. Rxd7+ {[%emt 0:00:03]} Kg6 {[%emt 0:00:07]} 26. bxa6 {[%emt 0:00:41]} Rxa6 {[%emt 0:00:06]} 27. a3 {[%emt 0:00:12]} Ra4 {[%emt 0:00:09]} 28. Rb7 {[%emt 0:03:21]} Rxe4 {[%emt 0:02:28]} 29. g3 {[%emt 0:00:11]} Re1+ {[%emt 0:04:39]} 30. Kg2 {[%emt 0:00:04]} e4 {[%emt 0:00:30]} 31. Rxb6 {[%emt 0:00:07]} e5 {[%emt 0:00:23]} 32. Rb3 {[%emt 0:04:44]} f5 {[%emt 0:03:07]} 33. Re3 {[%emt 0:04:08]} Rb1 {[%emt 0:01:08]} 34. Re2 {[%emt 0:00:15]} Kg5 {[%emt 0:03:32]} 35. f3 {[%emt 0:06:21]} exf3+ {[%emt 0:05:52]} 36. Kxf3 {[%emt 0:00:02]} e4+ {[%emt 0:00:08]} 37. Ke3 {[%emt 0:07:51]} h5 {[%emt 0:00:15]} 38. Kf2 {[%emt 0:02:30]} h4 {[%emt 0:00:39]} 39. gxh4+ {[%emt 0:01:22]} Kxh4 {[%emt 0:01:13]} 40. Ke3 {[%emt 0:00:19]} Kg5 {[%emt 0:01:16]} 41. Rc2 {[%emt 0:01:10]} Re1+ {[%emt 0:01:02]} 42. Kd2 {[%emt 0:00:37]} Rg1 {[%emt 0:02:45]} 43. Ke3 {[%emt 0:01:28]} Rd1 {[%emt 0:01:04]} 44. Rxc5 {[%emt 0:00:22]} Rd3+ {[%emt 0:00:04]} 45. Ke2 {[%emt 0:00:19]} Rb3 {[%emt 0:01:16]} 46. Rc2 {[%emt 0:00:29]} f4 {[%emt 0:00:10]} 47. a4 {[%emt 0:01:14]} f3+ {[%emt 0:00:27]} 48. Kf2 {[%emt 0:00:27]} Kf4 {[%emt 0:00:07]} 49. a5 {[%emt 0:00:03]} e3+ {[%emt 0:00:05]} 50. Ke1 {[%emt 0:00:07]} Rd3 {[%emt 0:00:50]} 51. Rc4+ {[%emt 0:00:56]} Ke5 {[%emt 0:01:52]} 52. Rc3 {[%emt 0:01:03]} Kd4 {[%emt 0:01:45]} 53. Rc1 {[%emt 0:01:03]} e2 {[%emt 0:00:19]} 0-1

[Event "2nd Namma Bengaluru Open-A 2025"]
[Site "Bengaluru"]
[Date "2025.04.12"]
[Round "4.20"]
[White "Subhayan Kundu"]
[Black "Nandish V S"]
[Result "1/2-1/2"]
[Annotator "ChessBase"]
[ECO "C55"]
[WhiteElo "2356"]
[BlackElo "2014"]
[PlyCount "60"]
[EventDate "2025.04.10"]
[EventType "swiss"]
[EventCountry "IND"]
[SourceTitle "playchess.com"]
[Source "ChessBase"]
[SourceQuality "1"]
[TimeControl "5400+30"]

1. e4 {[%emt 0:00:11]} e5 {[%emt 0:00:05]} 2. Nf3 {[%emt 1:31:19]} Nc6 {[%emt 1:31:25]} 3. Bc4 {[%emt 0:00:00]} Nf6 {[%emt 0:00:00]} 4. d3 {[%emt 0:00:00]} Be7 {[%emt 0:00:00]} 5. O-O {[%emt 0:00:00]} O-O {[%emt 0:00:00]} 6. Nc3 {[%emt 0:00:00]} d6 {[%emt 0:00:00]} 7. a4 {[%emt 0:00:00]} Bg4 {[%emt 0:00:00]} 8. h3 {[%emt 0:00:00]} Bxf3 {[%emt 0:00:00]} 9. Qxf3 {[%emt 0:00:00]} Nd4 {[%emt 0:00:00]} 10. Qd1 {[%emt 0:00:00]} c6 {[%emt 0:00:00]} 11. Ba2 {[%emt 0:00:00]} Ne6 {[%emt 0:00:00]} 12. g3 {[%emt 0:00:00]} d5 {[%emt 0:00:00]} 13. Bd2 {[%emt 0:00:00]} Qd7 {[%emt 0:00:00]} 14. exd5 {[%emt 0:00:00]} cxd5 {[%emt 0:00:00]} 15. Re1 {[%emt 0:00:00]} Bc5 {[%emt 0:00:00]} 16. Kg2 {[%emt 0:00:00]} Qd6 {[%emt 0:00:00]} 17. Nb5 {[%emt 0:00:00]} Qb6 {[%emt 0:00:00]} 18. Rxe5 {[%emt 0:00:00]} Bxf2 {[%emt 0:00:00]} 19. Bb3 {[%emt 0:00:00]} a6 {[%emt 0:00:00]} 20. Qf3 {[%emt 0:00:00]} Bc5 {[%emt 0:00:00]} 21. Nc3 {[%emt 0:00:00]} Nd4 {[%emt 0:00:12]} 22. Qd1 {[%emt 0:00:00]} Nxb3 {[%emt 0:00:10]} 23. cxb3 {[%emt 0:00:00]} Rae8 {[%emt 0:01:01]} 24. Bf4 {[%emt 0:00:47]} Bd4 {[%emt 0:02:37]} 25. Re2 {[%emt 0:02:45]} Rxe2+ {[%emt 0:01:24]} 26. Nxe2 {[%emt 0:00:04]} Be3 {[%emt 0:01:40]} 27. Qc2 {[%emt 0:02:44]} Re8 {[%emt 0:05:26]} 28. Rf1 {[%emt 0:00:20]} Qe6 {[%emt 0:00:00]} 29. Bxe3 {[%emt 0:00:14]} Qxe3 {[%emt 0:00:00]} 30. Rf2 {[%emt 0:00:05]} h6 {[%emt 0:00:00]} 1/2-1/2

[Event "2nd Namma Bengaluru Open-A 2025"]
[Site "Bengaluru"]
[Date "2025.04.12"]
[Round "4.21"]
[White "Padmini, Rout"]
[Black "Singgih, Diajeng Theresa"]
[Result "1-0"]
[Annotator "ChessBase"]
[ECO "A13"]
[WhiteElo "2354"]
[BlackElo "1931"]
[PlyCount "115"]
[EventDate "2025.04.10"]
[EventType "swiss"]
[EventCountry "IND"]
[SourceTitle "playchess.com"]
[Source "ChessBase"]
[SourceQuality "1"]
[TimeControl "5400+30"]

1. Nf3 {[%emt 0:00:09]} d5 {[%emt 0:00:28]} 2. g3 {[%emt 0:00:09]} Nf6 {[%emt 0:02:12]} 3. Bg2 {[%emt 0:00:11]} c5 {[%emt 0:01:36]} 4. O-O {[%emt 0:00:14]} e6 {[%emt 0:00:27]} 5. c4 {[%emt 0:00:55]} d4 {[%emt 0:00:10]} 6. e3 {[%emt 0:00:22]} Nc6 {[%emt 0:01:45]} 7. exd4 {[%emt 0:00:11]} Nxd4 {[%emt 0:02:47]} 8. Nxd4 {[%emt 0:01:31]} Qxd4 {[%emt 0:01:19]} 9. d3 {[%emt 0:07:43]} Be7 {[%emt 0:03:20]} 10. Nc3 {[%emt 0:00:17]} O-O {[%emt 0:03:12]} 11. Be3 {[%emt 0:00:46]} Qd8 {[%emt 0:02:03]} 12. d4 {[%emt 0:03:42]} cxd4 {[%emt 0:01:38]} 13. Qxd4 {[%emt 0:01:23]} Qa5 {[%emt 0:09:12]} 14. c5 {[%emt 0:07:53]} Rd8 {[%emt 0:01:17]} 15. Qc4 {[%emt 0:00:29]} e5 {[%emt 0:04:54]} 16. Nd5 {[%emt 0:10:44]} Be6 {[%emt 0:09:52]} 17. Nxe7+ {[%emt 0:02:22]} Kf8 {[%emt 0:00:08]} 18. Qc2 {[%emt 0:01:35]} Kxe7 {[%emt 0:01:40]} 19. Bxb7 {[%emt 0:00:55]} Rab8 {[%emt 0:01:59]} 20. c6 {[%emt 0:02:12]} Qc7 {[%emt 0:04:57]} 21. Qc5+ {[%emt 0:00:47]} Ke8 {[%emt 0:03:46]} 22. Qxa7 {[%emt 0:00:44]} Nd5 {[%emt 0:00:23]} 23. Rfd1 {[%emt 0:02:12]} f5 {[%emt 0:02:45]} 24. Qa4 {[%emt 0:05:11]} Kf7 {[%emt 0:04:51]} 25. Ba7 {[%emt 0:11:15]} Rxb7 {[%emt 0:01:14]} 26. cxb7 {[%emt 0:00:52]} Qxb7 {[%emt 0:00:05]} 27. Bc5 {[%emt 0:01:07]} Qxb2 {[%emt 0:01:25]} 28. Rab1 {[%emt 0:03:59]} Qe2 {[%emt 0:05:33]} 29. Re1 {[%emt 0:02:40]} Qf3 {[%emt 0:01:57]} 30. Rb7+ {[%emt 0:01:03]} Kg8 {[%emt 0:05:31]} 31. Qb3 {[%emt 0:02:01]} Qxb3 {[%emt 0:09:15]} 32. axb3 {[%emt 0:00:09]} Nc3 {[%emt 0:00:08]} 33. Re7 {[%emt 0:06:40]} Bxb3 {[%emt 0:01:13]} 34. R7xe5 {[%emt 0:02:37]} Bc2 {[%emt 0:01:47]} 35. Re8+ {[%emt 0:01:45]} Rxe8 {[%emt 0:00:04]} 36. Rxe8+ {[%emt 0:00:08]} Kf7 {[%emt 0:00:03]} 37. Rf8+ {[%emt 0:00:11]} Kg6 {[%emt 0:00:15]} 38. f3 {[%emt 0:00:13]} f4 {[%emt 0:02:29]} 39. gxf4 {[%emt 0:01:27]} Nd5 {[%emt 0:02:14]} 40. Kf2 {[%emt 0:00:15]} Nf6 {[%emt 0:02:53]} 41. Bd4 {[%emt 0:00:30]} Bf5 {[%emt 0:00:47]} 42. Bxf6 {[%emt 0:01:14]} gxf6 {[%emt 0:00:05]} 43. Rg8+ {[%emt 0:00:03]} Kf7 {[%emt 0:01:56]} 44. Rg1 {[%emt 0:00:06]} Ke6 {[%emt 0:00:51]} 45. Ke3 {[%emt 0:00:04]} Bg6 {[%emt 0:01:12]} 46. Ra1 {[%emt 0:00:25]} Bf5 {[%emt 0:02:58]} 47. Ra5 {[%emt 0:00:06]} Bg6 {[%emt 0:01:05]} 48. Kf2 {[%emt 0:00:17]} Bf5 {[%emt 0:00:14]} 49. Kg3 {[%emt 0:00:05]} Bd3 {[%emt 0:01:05]} 50. Kg4 {[%emt 0:00:32]} Kf7 {[%emt 0:00:40]} 51. Kh5 {[%emt 0:00:29]} Ke6 {[%emt 0:01:35]} 52. Kh6 {[%emt 0:00:14]} Bg6 {[%emt 0:00:39]} 53. h4 {[%emt 0:00:10]} Bf5 {[%emt 0:00:33]} 54. h5 {[%emt 0:00:20]} Bc2 {[%emt 0:00:22]} 55. Kg7 {[%emt 0:00:19]} Bd3 {[%emt 0:00:29]} 56. Ra3 {[%emt 0:00:18]} Bc2 {[%emt 0:00:37]} 57. Ra6+ {[%emt 0:00:07]} Ke7 {[%emt 0:00:17]} 58. Rxf6 {[%emt 0:00:10]} 1-0